[Event "Titled Tuesday Blitz May 9 Early 2023"]
[White "Howell, David W L"]
[Black "Dahlgren, James Allen"]
[WhiteFideId "410608"]
[BlackFideId "22256873"]
[WhiteElo "2567"]
[BlackElo "2213"]
[Result "1-0"]
[Round "08"]
[TimeControl "180+2"]
[Date "2023.05.09"]
[WhiteClock "0:00:58"]
[BlackClock "0:00:45"]

1. d4 {[%clk 0:02:59]}  e6 {[%clk 0:02:59]} 2. Bf4 {[%clk 0:02:50]}  c5 {[%clk 0:02:59]} 3. e3 {[%clk 0:02:50]}  Nf6 {[%clk 0:02:58]} 4. c3 {[%clk 0:02:50]}  d5 {[%clk 0:02:58]} 5. Nd2 {[%clk 0:02:50]}  Nc6 {[%clk 0:02:59]} 6. Bb5 {[%clk 0:02:42]}  Be7 {[%clk 0:02:58]} 7. Ngf3 {[%clk 0:02:40]}  O-O {[%clk 0:02:57]} 8. Rb1 {[%clk 0:02:36]}  h6 {[%clk 0:02:32]} 9. Qe2 {[%clk 0:02:21]}  Bd7 {[%clk 0:02:18]} 10. h3 {[%clk 0:02:14]}  a6 {[%clk 0:02:18]} 11. Bd3 {[%clk 0:02:12]}  b5 {[%clk 0:02:16]} 12. O-O {[%clk 0:02:11]}  c4 {[%clk 0:02:12]} 13. Bc2 {[%clk 0:02:08]}  b4 {[%clk 0:02:12]} 14. e4 {[%clk 0:02:07]}  a5 {[%clk 0:02:10]} 15. Rfe1 {[%clk 0:02:01]}  Nh5 {[%clk 0:01:58]} 16. Bh2 {[%clk 0:01:57]}  f5 {[%clk 0:01:58]} 17. exd5 {[%clk 0:01:41]}  exd5 {[%clk 0:01:59]} 18. Ne5 {[%clk 0:01:41]}  Nxe5 {[%clk 0:01:45]} 19. Qxe5 {[%clk 0:01:41]}  Bg5 {[%clk 0:01:38]} 20. Qxd5+ {[%clk 0:01:35]}  Kh8 {[%clk 0:01:38]} 21. Nxc4 {[%clk 0:01:26]}  f4 {[%clk 0:01:21]} 22. Ne5 {[%clk 0:01:21]}  Bf5 {[%clk 0:01:07]} 23. Qxd8 {[%clk 0:01:16]}  Raxd8 {[%clk 0:01:05]} 24. Ng6+ {[%clk 0:01:13]}  Bxg6 {[%clk 0:01:03]} 25. Bxg6 {[%clk 0:01:14]}  Nf6 {[%clk 0:01:03]} 26. Re5 {[%clk 0:01:06]}  bxc3 {[%clk 0:01:02]} 27. bxc3 {[%clk 0:01:06]}  Rb8 {[%clk 0:01:03]} 28. Rbe1 {[%clk 0:01:02]}  Rb2 {[%clk 0:01:00]} 29. Rxa5 {[%clk 0:01:00]}  Nd5 {[%clk 0:00:45]} 30. Rxd5 {[%clk 0:00:58]} 1-0


[Site "https://www.chess.com"]

[Event "Titled Tuesday Blitz May 9 Early 2023"]
[White "Iskusnyh, Sergei"]
[Black "Goswami, Vedant"]
[WhiteFideId "4120027"]
[BlackFideId "5003725"]
[WhiteElo "2492"]
[BlackElo "2011"]
[Result "0-1"]
[Round "08"]
[TimeControl "180+2"]
[Date "2023.05.09"]
[WhiteClock "0:00:11"]
[BlackClock "0:00:16"]

1. d4 {[%clk 0:03:00]}  d6 {[%clk 0:02:56]} 2. Nf3 {[%clk 0:02:58]}  Nf6 {[%clk 0:02:53]} 3. c4 {[%clk 0:02:58]}  Bg4 {[%clk 0:02:50]} 4. Nc3 {[%clk 0:02:55]}  c6 {[%clk 0:02:45]} 5. e3 {[%clk 0:02:42]}  Nbd7 {[%clk 0:02:43]} 6. Be2 {[%clk 0:02:42]}  e5 {[%clk 0:02:43]} 7. h3 {[%clk 0:02:34]}  Bh5 {[%clk 0:02:40]} 8. b3 {[%clk 0:02:06]}  Be7 {[%clk 0:02:39]} 9. Bb2 {[%clk 0:02:06]}  O-O {[%clk 0:02:32]} 10. O-O {[%clk 0:02:06]}  Re8 {[%clk 0:02:28]} 11. dxe5 {[%clk 0:01:57]}  dxe5 {[%clk 0:02:26]} 12. Nxe5 {[%clk 0:01:42]}  Nxe5 {[%clk 0:02:16]} 13. Bxh5 {[%clk 0:01:41]}  Nd3 {[%clk 0:02:14]} 14. Bc1 {[%clk 0:01:38]}  Nxh5 {[%clk 0:01:46]} 15. Qxh5 {[%clk 0:01:36]}  Bf6 {[%clk 0:01:43]} 16. Bd2 {[%clk 0:01:32]}  Nf4 {[%clk 0:01:32]} 17. Qd1 {[%clk 0:01:25]}  Bxc3 {[%clk 0:01:17]} 18. Bxc3 {[%clk 0:01:21]}  Qxd1 {[%clk 0:01:16]} 19. Rfxd1 {[%clk 0:01:20]}  Ne2+ {[%clk 0:01:17]} 20. Kf1 {[%clk 0:01:19]}  Nxc3 {[%clk 0:01:17]} 21. Rd7 {[%clk 0:01:19]}  Rab8 {[%clk 0:01:12]} 22. a3 {[%clk 0:01:17]}  Ne4 {[%clk 0:01:10]} 23. b4 {[%clk 0:01:15]}  Kf8 {[%clk 0:01:09]} 24. Rad1 {[%clk 0:01:13]}  Nf6 {[%clk 0:01:06]} 25. R7d4 {[%clk 0:01:10]}  Ke7 {[%clk 0:01:04]} 26. g4 {[%clk 0:01:09]}  Rbd8 {[%clk 0:01:01]} 27. g5 {[%clk 0:01:09]}  Ng8 {[%clk 0:00:54]} 28. Re4+ {[%clk 0:00:53]}  Kf8 {[%clk 0:00:54]} 29. Red4 {[%clk 0:00:54]}  Rxd4 {[%clk 0:00:49]} 30. Rxd4 {[%clk 0:00:55]}  Ke7 {[%clk 0:00:48]} 31. Ke2 {[%clk 0:00:50]}  f5 {[%clk 0:00:46]} 32. Kf3 {[%clk 0:00:19]}  Rd8 {[%clk 0:00:44]} 33. Kf4 {[%clk 0:00:13]}  Rxd4+ {[%clk 0:00:42]} 34. exd4 {[%clk 0:00:14]}  g6 {[%clk 0:00:41]} 35. Ke5 {[%clk 0:00:13]}  Kd7 {[%clk 0:00:34]} 36. h4 {[%clk 0:00:12]}  b5 {[%clk 0:00:31]} 37. cxb5 {[%clk 0:00:10]}  cxb5 {[%clk 0:00:31]} 38. Kd5 {[%clk 0:00:09]}  Ne7+ {[%clk 0:00:30]} 39. Kc5 {[%clk 0:00:08]}  Nc6 {[%clk 0:00:25]} 40. d5 {[%clk 0:00:07]}  Ne5 {[%clk 0:00:24]} 41. Kxb5 {[%clk 0:00:08]}  Nd3 {[%clk 0:00:23]} 42. Ka6 {[%clk 0:00:07]}  Nxf2 {[%clk 0:00:19]} 43. Kxa7 {[%clk 0:00:08]}  Ne4 {[%clk 0:00:19]} 44. b5 {[%clk 0:00:08]}  f4 {[%clk 0:00:18]} 45. b6 {[%clk 0:00:08]}  Nc5 {[%clk 0:00:17]} 46. a4 {[%clk 0:00:08]}  f3 {[%clk 0:00:17]} 47. a5 {[%clk 0:00:09]}  f2 {[%clk 0:00:17]} 48. a6 {[%clk 0:00:10]}  f1=Q {[%clk 0:00:16]} 49. b7 {[%clk 0:00:11]}  Qxa6+ {[%clk 0:00:16]} 50. Kb8 {[%clk 0:00:11]}  Qxb7# {[%clk 0:00:16]} 0-1


[Site "https://www.chess.com"]

[Event "Titled Tuesday Blitz May 9 Early 2023"]
[White "Mohammed, Zozek Salah Mohammed"]
[Black "Kim, Sergey"]
[WhiteFideId "4803361"]
[BlackFideId "13700570"]
[WhiteElo "2211"]
[BlackElo "2582"]
[Result "0-1"]
[Round "08"]
[TimeControl "180+2"]
[Date "2023.05.09"]
[WhiteClock "0:01:24"]
[BlackClock "0:01:57"]

1. d4 {[%clk 0:02:56]}  Nf6 {[%clk 0:02:59]} 2. Nf3 {[%clk 0:02:55]}  g6 {[%clk 0:02:59]} 3. g3 {[%clk 0:02:54]}  Bg7 {[%clk 0:03:00]} 4. Bg2 {[%clk 0:02:55]}  d6 {[%clk 0:03:00]} 5. O-O {[%clk 0:02:55]}  O-O {[%clk 0:03:00]} 6. b3 {[%clk 0:02:56]}  e5 {[%clk 0:02:59]} 7. dxe5 {[%clk 0:02:51]}  Nfd7 {[%clk 0:02:59]} 8. Bb2 {[%clk 0:02:50]}  dxe5 {[%clk 0:02:59]} 9. Nc3 {[%clk 0:02:26]}  Nc6 {[%clk 0:02:55]} 10. a4 {[%clk 0:02:10]}  e4 {[%clk 0:02:53]} 11. Ne1 {[%clk 0:02:05]}  f5 {[%clk 0:02:52]} 12. Rb1 {[%clk 0:01:59]}  Nde5 {[%clk 0:02:50]} 13. Nd5 {[%clk 0:01:55]}  Be6 {[%clk 0:02:45]} 14. c4 {[%clk 0:01:55]}  a5 {[%clk 0:02:43]} 15. Nc2 {[%clk 0:01:52]}  Rf7 {[%clk 0:02:39]} 16. Nd4 {[%clk 0:01:52]}  Nxd4 {[%clk 0:02:39]} 17. Bxd4 {[%clk 0:01:49]}  Rd7 {[%clk 0:02:33]} 18. Qc2 {[%clk 0:01:36]}  Bxd5 {[%clk 0:02:14]} 19. cxd5 {[%clk 0:01:37]}  Rxd5 {[%clk 0:02:13]} 20. Bc3 {[%clk 0:01:34]}  Rc5 {[%clk 0:02:09]} 21. Rfd1 {[%clk 0:01:32]}  Qe7 {[%clk 0:02:08]} 22. Qb2 {[%clk 0:01:24]}  Rxc3 {[%clk 0:02:05]} 23. Qxc3 {[%clk 0:01:23]}  Nf3+ {[%clk 0:02:05]} 24. Qxf3 {[%clk 0:01:23]}  exf3 {[%clk 0:02:04]} 25. Bxf3 {[%clk 0:01:24]}  c6 {[%clk 0:02:02]} 26. Rd3 {[%clk 0:01:23]}  Rd8 {[%clk 0:02:00]} 27. Rbd1 {[%clk 0:01:24]}  Rxd3 {[%clk 0:01:57]} 28. Rxd3 {[%clk 0:01:24]} 0-1


[Site "https://www.chess.com"]

[Event "Titled Tuesday Blitz May 9 Early 2023"]
[White "Hinds, Nathan"]
[Black "Turzo, Attila"]
[WhiteFideId "7400730"]
[BlackFideId "704954"]
[WhiteElo "2001"]
[BlackElo "2470"]
[Result "0-1"]
[Round "08"]
[TimeControl "180+2"]
[Date "2023.05.09"]
[WhiteClock "0:00:17"]
[BlackClock "0:01:05"]

1. Nf3 {[%clk 0:03:00]}  d5 {[%clk 0:02:59]} 2. d4 {[%clk 0:03:00]}  c6 {[%clk 0:03:00]} 3. c4 {[%clk 0:03:00]}  Nf6 {[%clk 0:03:00]} 4. g3 {[%clk 0:03:00]}  Bf5 {[%clk 0:02:58]} 5. cxd5 {[%clk 0:02:59]}  cxd5 {[%clk 0:02:58]} 6. Bg2 {[%clk 0:03:00]}  Nc6 {[%clk 0:02:57]} 7. O-O {[%clk 0:03:00]}  e6 {[%clk 0:02:57]} 8. Nc3 {[%clk 0:03:00]}  h6 {[%clk 0:02:57]} 9. Bf4 {[%clk 0:03:00]}  Be7 {[%clk 0:02:57]} 10. Ne5 {[%clk 0:03:00]}  O-O {[%clk 0:02:53]} 11. Rc1 {[%clk 0:02:59]}  Rc8 {[%clk 0:02:52]} 12. Nxc6 {[%clk 0:02:51]}  Rxc6 {[%clk 0:02:51]} 13. Be5 {[%clk 0:02:50]}  Qd7 {[%clk 0:02:43]} 14. Bxf6 {[%clk 0:02:50]}  Bxf6 {[%clk 0:02:43]} 15. e3 {[%clk 0:02:51]}  Rfc8 {[%clk 0:02:42]} 16. Qd2 {[%clk 0:02:47]}  a6 {[%clk 0:02:32]} 17. Ne2 {[%clk 0:02:46]}  Rc2 {[%clk 0:02:31]} 18. Qd1 {[%clk 0:02:25]}  Rxb2 {[%clk 0:02:26]} 19. Rxc8+ {[%clk 0:02:14]}  Qxc8 {[%clk 0:02:27]} 20. Nf4 {[%clk 0:02:14]}  Rxa2 {[%clk 0:02:23]} 21. Qb3 {[%clk 0:02:11]}  Rc2 {[%clk 0:02:16]} 22. Qb6 {[%clk 0:01:48]}  Qc6 {[%clk 0:02:10]} 23. Qa7 {[%clk 0:01:37]}  b5 {[%clk 0:02:00]} 24. h3 {[%clk 0:01:11]}  Rc1 {[%clk 0:01:44]} 25. Kh2 {[%clk 0:01:00]}  Rxf1 {[%clk 0:01:39]} 26. Bxf1 {[%clk 0:01:01]}  e5 {[%clk 0:01:27]} 27. Qb8+ {[%clk 0:00:56]}  Qc8 {[%clk 0:01:19]} 28. Qxc8+ {[%clk 0:00:47]}  Bxc8 {[%clk 0:01:20]} 29. Nxd5 {[%clk 0:00:47]}  exd4 {[%clk 0:01:13]} 30. Nxf6+ {[%clk 0:00:47]}  gxf6 {[%clk 0:01:13]} 31. exd4 {[%clk 0:00:48]}  Be6 {[%clk 0:01:12]} 32. f4 {[%clk 0:00:33]}  Bc4 {[%clk 0:01:12]} 33. Bg2 {[%clk 0:00:28]}  a5 {[%clk 0:01:08]} 34. d5 {[%clk 0:00:29]}  a4 {[%clk 0:01:05]} 35. d6 {[%clk 0:00:29]}  Kf8 {[%clk 0:01:06]} 36. Bc6 {[%clk 0:00:26]}  a3 {[%clk 0:01:05]} 37. Bxb5 {[%clk 0:00:17]}  Bxb5 {[%clk 0:01:05]} 0-1


[Site "https://www.chess.com"]

[Event "Titled Tuesday Blitz May 9 Early 2023"]
[White "Antonio, Jorge Carlos"]
[Black "Luberanski, Jakub"]
[WhiteFideId "113190"]
[BlackFideId "21830509"]
[WhiteElo "2247"]
[BlackElo "2255"]
[Result "1/2-1/2"]
[Round "08"]
[TimeControl "180+2"]
[Date "2023.05.09"]
[WhiteClock "0:00:32"]
[BlackClock "0:00:07"]

1. d4 {[%clk 0:03:00]}  Nf6 {[%clk 0:02:59]} 2. Nf3 {[%clk 0:03:00]}  e6 {[%clk 0:02:59]} 3. Bf4 {[%clk 0:02:58]}  d5 {[%clk 0:02:59]} 4. e3 {[%clk 0:02:56]}  Be7 {[%clk 0:02:58]} 5. Bd3 {[%clk 0:02:48]}  O-O {[%clk 0:02:58]} 6. c3 {[%clk 0:02:45]}  c5 {[%clk 0:02:58]} 7. Ne5 {[%clk 0:02:43]}  Nbd7 {[%clk 0:02:56]} 8. Nd2 {[%clk 0:02:42]}  Nxe5 {[%clk 0:02:56]} 9. dxe5 {[%clk 0:02:38]}  Nd7 {[%clk 0:02:54]} 10. Nf3 {[%clk 0:02:36]}  f6 {[%clk 0:02:43]} 11. exf6 {[%clk 0:02:29]}  Bxf6 {[%clk 0:02:44]} 12. Bc2 {[%clk 0:02:26]}  Qe7 {[%clk 0:02:23]} 13. Qd3 {[%clk 0:02:25]}  g6 {[%clk 0:02:22]} 14. h4 {[%clk 0:02:20]}  c4 {[%clk 0:02:18]} 15. Qd2 {[%clk 0:02:17]}  Nb6 {[%clk 0:02:14]} 16. Ng5 {[%clk 0:02:08]}  e5 {[%clk 0:02:10]} 17. Bg3 {[%clk 0:02:05]}  Bxg5 {[%clk 0:02:05]} 18. hxg5 {[%clk 0:02:02]}  Bf5 {[%clk 0:02:05]} 19. O-O-O {[%clk 0:02:00]}  Bxc2 {[%clk 0:02:03]} 20. Qxc2 {[%clk 0:01:51]}  Qxg5 {[%clk 0:01:56]} 21. a4 {[%clk 0:01:45]}  a5 {[%clk 0:01:53]} 22. Kb1 {[%clk 0:01:41]}  Qf5 {[%clk 0:01:51]} 23. e4 {[%clk 0:01:36]}  Qxe4 {[%clk 0:01:25]} 24. Qxe4 {[%clk 0:01:36]}  dxe4 {[%clk 0:01:26]} 25. Rhe1 {[%clk 0:01:32]}  Rad8 {[%clk 0:01:11]} 26. Rxd8 {[%clk 0:01:27]}  Rxd8 {[%clk 0:01:10]} 27. Rxe4 {[%clk 0:01:25]}  Rd2 {[%clk 0:00:26]} 28. Rxe5 {[%clk 0:01:20]}  Nxa4 {[%clk 0:00:22]} 29. Rxa5 {[%clk 0:01:14]}  Rxb2+ {[%clk 0:00:17]} 30. Ka1 {[%clk 0:01:10]}  Rb3 {[%clk 0:00:12]} 31. Rxa4 {[%clk 0:01:03]}  Rxc3 {[%clk 0:00:13]} 32. Rb4 {[%clk 0:00:56]}  Rc2 {[%clk 0:00:11]} 33. Rxb7 {[%clk 0:00:54]}  h5 {[%clk 0:00:11]} 34. Kb1 {[%clk 0:00:47]}  Re2 {[%clk 0:00:11]} 35. Rc7 {[%clk 0:00:46]}  Re4 {[%clk 0:00:11]} 36. Kc2 {[%clk 0:00:45]}  h4 {[%clk 0:00:11]} 37. Bd6 {[%clk 0:00:41]}  Re2+ {[%clk 0:00:11]} 38. Kc3 {[%clk 0:00:40]}  Rxf2 {[%clk 0:00:11]} 39. Be7 {[%clk 0:00:36]}  Rxg2 {[%clk 0:00:09]} 40. Bxh4 {[%clk 0:00:34]}  g5 {[%clk 0:00:10]} 41. Bxg5 {[%clk 0:00:32]}  Rxg5 {[%clk 0:00:07]} 42. Kxc4 {[%clk 0:00:32]} 1/2-1/2


[Site "https://www.chess.com"]

[Event "Titled Tuesday Blitz May 9 Early 2023"]
[White "Melikhov, Evgeny V."]
[Black "Rosenberg, Evan S"]
[WhiteFideId "4122046"]
[BlackFideId "2019299"]
[WhiteElo "2158"]
[BlackElo "2259"]
[Result "0-1"]
[Round "08"]
[TimeControl "180+2"]
[Date "2023.05.09"]
[WhiteClock "0:00:01"]
[BlackClock "0:00:07"]

1. d4 {[%clk 0:03:00]}  d5 {[%clk 0:02:59]} 2. c4 {[%clk 0:03:00]}  e6 {[%clk 0:02:59]} 3. Nc3 {[%clk 0:03:00]}  c5 {[%clk 0:02:59]} 4. cxd5 {[%clk 0:03:00]}  cxd4 {[%clk 0:02:59]} 5. Qa4+ {[%clk 0:02:59]}  Bd7 {[%clk 0:02:59]} 6. Qxd4 {[%clk 0:02:59]}  exd5 {[%clk 0:03:00]} 7. Qxd5 {[%clk 0:03:00]}  Nf6 {[%clk 0:03:00]} 8. Qd1 {[%clk 0:02:59]}  Bc5 {[%clk 0:03:00]} 9. e3 {[%clk 0:02:59]}  O-O {[%clk 0:02:59]} 10. Nf3 {[%clk 0:02:59]}  Qe7 {[%clk 0:02:58]} 11. Be2 {[%clk 0:02:58]}  Rd8 {[%clk 0:02:58]} 12. Qc2 {[%clk 0:02:54]}  Nc6 {[%clk 0:02:58]} 13. a3 {[%clk 0:02:53]}  Rac8 {[%clk 0:02:58]} 14. O-O {[%clk 0:02:53]}  Ne5 {[%clk 0:02:58]} 15. Nxe5 {[%clk 0:02:46]}  Qxe5 {[%clk 0:02:58]} 16. Bf3 {[%clk 0:02:43]}  Bc6 {[%clk 0:02:30]} 17. Qe2 {[%clk 0:02:24]}  Bd6 {[%clk 0:02:13]} 18. g3 {[%clk 0:02:23]}  h5 {[%clk 0:02:14]} 19. Bxc6 {[%clk 0:01:53]}  Rxc6 {[%clk 0:02:09]} 20. Qb5 {[%clk 0:01:50]}  Qe7 {[%clk 0:01:48]} 21. e4 {[%clk 0:01:35]}  h4 {[%clk 0:01:26]} 22. Bg5 {[%clk 0:01:28]}  Rc5 {[%clk 0:01:05]} 23. Bxf6 {[%clk 0:01:27]}  Qxf6 {[%clk 0:01:03]} 24. Qe2 {[%clk 0:01:21]}  Be5 {[%clk 0:00:52]} 25. Rad1 {[%clk 0:01:17]}  Bxc3 {[%clk 0:00:49]} 26. Rxd8+ {[%clk 0:01:13]}  Qxd8 {[%clk 0:00:49]} 27. bxc3 {[%clk 0:01:13]}  Rxc3 {[%clk 0:00:49]} 28. Rd1 {[%clk 0:00:59]}  Qg5 {[%clk 0:00:44]} 29. f4 {[%clk 0:00:45]}  Qc5+ {[%clk 0:00:41]} 30. Kg2 {[%clk 0:00:43]}  Rc2 {[%clk 0:00:41]} 31. Rd2 {[%clk 0:00:43]}  Rc1 {[%clk 0:00:28]} 32. e5 {[%clk 0:00:21]}  g6 {[%clk 0:00:24]} 33. Qg4 {[%clk 0:00:10]}  Qg1+ {[%clk 0:00:22]} 34. Kh3 {[%clk 0:00:09]}  hxg3 {[%clk 0:00:20]} 35. Qxg3 {[%clk 0:00:07]}  Qf1+ {[%clk 0:00:19]} 36. Kh4 {[%clk 0:00:06]}  Kg7 {[%clk 0:00:15]} 37. Kg5 {[%clk 0:00:05]}  Qa6 {[%clk 0:00:11]} 38. Rd6 {[%clk 0:00:03]}  Qe2 {[%clk 0:00:09]} 39. Qg4 {[%clk 0:00:02]}  Rg1 {[%clk 0:00:07]} 40. Qxg1 {[%clk 0:00:01]}  Qh5# {[%clk 0:00:07]} 0-1


[Site "https://www.chess.com"]

[Event "Titled Tuesday Blitz May 9 Early 2023"]
[White "Makhmudov, Shukhrat"]
[Black "Fabris, Alberto"]
[WhiteFideId "14200775"]
[BlackFideId "801348"]
[WhiteElo "2135"]
[BlackElo "2175"]
[Result "1-0"]
[Round "08"]
[TimeControl "180+2"]
[Date "2023.05.09"]
[WhiteClock "0:00:52"]
[BlackClock "0:00:00"]

1. e4 {[%clk 0:03:00]}  c5 {[%clk 0:02:59]} 2. Nf3 {[%clk 0:03:00]}  d6 {[%clk 0:03:00]} 3. d4 {[%clk 0:03:00]}  cxd4 {[%clk 0:03:00]} 4. Nxd4 {[%clk 0:03:01]}  Nf6 {[%clk 0:03:01]} 5. Nc3 {[%clk 0:03:01]}  a6 {[%clk 0:03:01]} 6. h3 {[%clk 0:03:01]}  e6 {[%clk 0:03:00]} 7. g4 {[%clk 0:03:01]}  Be7 {[%clk 0:03:00]} 8. h4 {[%clk 0:02:59]}  h6 {[%clk 0:02:58]} 9. Bg2 {[%clk 0:02:57]}  Qc7 {[%clk 0:02:57]} 10. g5 {[%clk 0:02:55]}  hxg5 {[%clk 0:02:56]} 11. hxg5 {[%clk 0:02:55]}  Rxh1+ {[%clk 0:02:56]} 12. Bxh1 {[%clk 0:02:56]}  Ng8 {[%clk 0:02:39]} 13. Qh5 {[%clk 0:02:55]}  Nc6 {[%clk 0:02:32]} 14. Be3 {[%clk 0:02:54]}  Bd7 {[%clk 0:02:26]} 15. O-O-O {[%clk 0:02:51]}  Ne5 {[%clk 0:02:23]} 16. f4 {[%clk 0:02:10]}  Nc4 {[%clk 0:02:19]} 17. Bf2 {[%clk 0:02:04]}  Rc8 {[%clk 0:02:11]} 18. Rd3 {[%clk 0:01:50]}  b5 {[%clk 0:02:08]} 19. f5 {[%clk 0:01:32]}  Kf8 {[%clk 0:01:13]} 20. fxe6 {[%clk 0:01:21]}  Bxe6 {[%clk 0:01:12]} 21. Nxe6+ {[%clk 0:01:17]}  fxe6 {[%clk 0:01:11]} 22. Rf3+ {[%clk 0:01:17]}  Bf6 {[%clk 0:00:59]} 23. Bd4 {[%clk 0:01:09]}  b4 {[%clk 0:00:56]} 24. gxf6 {[%clk 0:01:07]}  Ne5 {[%clk 0:00:23]} 25. fxg7+ {[%clk 0:01:01]}  Kxg7 {[%clk 0:00:00]} 26. Qg5+ {[%clk 0:00:52]} 1-0


[Site "https://www.chess.com"]

[Event "Titled Tuesday Blitz May 9 Early 2023"]
[White "micke12a"]
[Black "Srdanovic, Jovana"]
[BlackFideId "954810"]
[WhiteElo "2376"]
[BlackElo "2169"]
[Result "1-0"]
[Round "08"]
[TimeControl "180+2"]
[Date "2023.05.09"]
[WhiteClock "0:01:32"]
[BlackClock "0:00:00"]

1. e4 {[%clk 0:03:00]}  c6 {[%clk 0:02:55]} 2. d4 {[%clk 0:02:59]}  d5 {[%clk 0:02:54]} 3. e5 {[%clk 0:03:00]}  Na6 {[%clk 0:02:53]} 4. c3 {[%clk 0:02:51]}  Nc7 {[%clk 0:02:52]} 5. Nf3 {[%clk 0:02:50]}  Bg4 {[%clk 0:02:50]} 6. h3 {[%clk 0:02:50]}  Bh5 {[%clk 0:02:49]} 7. Bd3 {[%clk 0:02:51]}  e6 {[%clk 0:02:49]} 8. O-O {[%clk 0:02:51]}  Qd7 {[%clk 0:02:36]} 9. Nbd2 {[%clk 0:02:50]}  a6 {[%clk 0:02:32]} 10. b4 {[%clk 0:02:43]}  Bg6 {[%clk 0:02:26]} 11. Nb3 {[%clk 0:02:41]}  Nb5 {[%clk 0:02:12]} 12. Bb2 {[%clk 0:02:36]}  Bxd3 {[%clk 0:01:55]} 13. Qxd3 {[%clk 0:02:35]}  Nh6 {[%clk 0:01:55]} 14. a4 {[%clk 0:02:34]}  Nc7 {[%clk 0:01:53]} 15. Ne1 {[%clk 0:02:18]}  Be7 {[%clk 0:01:50]} 16. Qe2 {[%clk 0:02:15]}  O-O {[%clk 0:01:39]} 17. Nd3 {[%clk 0:02:15]}  b6 {[%clk 0:01:20]} 18. a5 {[%clk 0:02:14]}  b5 {[%clk 0:01:12]} 19. Nbc5 {[%clk 0:02:13]}  Bxc5 {[%clk 0:01:10]} 20. Nxc5 {[%clk 0:02:12]}  Qe7 {[%clk 0:01:07]} 21. Bc1 {[%clk 0:02:12]}  Nf5 {[%clk 0:00:52]} 22. Kh2 {[%clk 0:02:10]}  f6 {[%clk 0:00:41]} 23. exf6 {[%clk 0:02:08]}  gxf6 {[%clk 0:00:28]} 24. Re1 {[%clk 0:02:08]}  Rae8 {[%clk 0:00:21]} 25. Bf4 {[%clk 0:02:06]}  Rf7 {[%clk 0:00:07]} 26. Kh1 {[%clk 0:01:55]}  Nd6 {[%clk 0:00:07]} 27. Qf3 {[%clk 0:01:48]}  Rg7 {[%clk 0:00:07]} 28. Re2 {[%clk 0:01:46]}  Nf5 {[%clk 0:00:07]} 29. Qh5 {[%clk 0:01:36]}  Rc8 {[%clk 0:00:00]} 30. Bxc7 {[%clk 0:01:32]} 1-0


[Site "https://www.chess.com"]

[Event "Titled Tuesday Blitz May 9 Early 2023"]
[White "Winkels, Marcel"]
[Black "Sharma, Dinesh K."]
[WhiteFideId "1003887"]
[BlackFideId "5004110"]
[WhiteElo "1900"]
[BlackElo "2334"]
[Result "0-1"]
[Round "08"]
[TimeControl "180+2"]
[Date "2023.05.09"]
[WhiteClock "0:00:37"]
[BlackClock "0:02:05"]

1. d4 {[%clk 0:03:00]}  Nf6 {[%clk 0:02:58]} 2. Nc3 {[%clk 0:03:01]}  g6 {[%clk 0:02:56]} 3. e4 {[%clk 0:02:58]}  d6 {[%clk 0:02:53]} 4. f4 {[%clk 0:02:57]}  Bg7 {[%clk 0:02:53]} 5. Nf3 {[%clk 0:02:58]}  O-O {[%clk 0:02:53]} 6. Be2 {[%clk 0:02:58]}  c5 {[%clk 0:02:52]} 7. dxc5 {[%clk 0:02:58]}  Qa5 {[%clk 0:02:52]} 8. O-O {[%clk 0:02:58]}  Qxc5+ {[%clk 0:02:51]} 9. Kh1 {[%clk 0:02:58]}  Bg4 {[%clk 0:02:52]} 10. Bd3 {[%clk 0:02:55]}  Nc6 {[%clk 0:02:50]} 11. Qe1 {[%clk 0:02:55]}  Bxf3 {[%clk 0:02:47]} 12. Rxf3 {[%clk 0:02:54]}  a6 {[%clk 0:02:44]} 13. Be3 {[%clk 0:02:52]}  Qa5 {[%clk 0:02:44]} 14. a3 {[%clk 0:02:50]}  Rfc8 {[%clk 0:02:43]} 15. f5 {[%clk 0:02:45]}  Ne5 {[%clk 0:02:42]} 16. Rh3 {[%clk 0:02:44]}  Neg4 {[%clk 0:02:40]} 17. Bd2 {[%clk 0:02:32]}  Qb6 {[%clk 0:02:39]} 18. Rf3 {[%clk 0:02:26]}  Qxb2 {[%clk 0:02:32]} 19. Rb1 {[%clk 0:02:16]}  Qxa3 {[%clk 0:02:31]} 20. Rxb7 {[%clk 0:02:16]}  Rab8 {[%clk 0:02:27]} 21. Rxb8 {[%clk 0:01:55]}  Rxb8 {[%clk 0:02:25]} 22. Rf1 {[%clk 0:01:56]}  Ne5 {[%clk 0:02:20]} 23. fxg6 {[%clk 0:01:52]}  hxg6 {[%clk 0:02:19]} 24. Qe2 {[%clk 0:01:43]}  Rc8 {[%clk 0:02:16]} 25. Nd5 {[%clk 0:01:39]}  Nxd5 {[%clk 0:02:13]} 26. exd5 {[%clk 0:01:38]}  Nxd3 {[%clk 0:02:14]} 27. cxd3 {[%clk 0:01:35]}  Bf6 {[%clk 0:02:14]} 28. h3 {[%clk 0:01:26]}  Qb2 {[%clk 0:02:12]} 29. Qf2 {[%clk 0:01:21]}  Rc2 {[%clk 0:02:10]} 30. Rc1 {[%clk 0:00:37]}  Rxc1+ {[%clk 0:02:05]} 0-1


[Site "https://www.chess.com"]

[Event "Titled Tuesday Blitz May 9 Early 2023"]
[White "Begunov, Konstantin"]
[Black "Jiganchine, Roman"]
[WhiteFideId "4118510"]
[BlackFideId "2603667"]
[WhiteElo "2050"]
[BlackElo "2265"]
[Result "1-0"]
[Round "08"]
[TimeControl "180+2"]
[Date "2023.05.09"]
[WhiteClock "0:00:18"]
[BlackClock "0:00:00"]

1. d4 {[%clk 0:01:28]}  d5 {[%clk 0:02:59]} 2. c4 {[%clk 0:01:28]}  e6 {[%clk 0:02:59]} 3. cxd5 {[%clk 0:01:28]}  exd5 {[%clk 0:02:57]} 4. Nc3 {[%clk 0:01:29]}  c6 {[%clk 0:02:56]} 5. Nf3 {[%clk 0:01:28]}  Bf5 {[%clk 0:02:56]} 6. Bg5 {[%clk 0:01:29]}  Qb6 {[%clk 0:02:43]} 7. Qd2 {[%clk 0:01:28]}  Nd7 {[%clk 0:02:41]} 8. e3 {[%clk 0:01:28]}  Ngf6 {[%clk 0:02:40]} 9. Be2 {[%clk 0:01:27]}  Bd6 {[%clk 0:02:40]} 10. O-O {[%clk 0:01:27]}  O-O {[%clk 0:02:39]} 11. Bh4 {[%clk 0:01:20]}  Rfe8 {[%clk 0:02:38]} 12. Rfc1 {[%clk 0:01:18]}  Ne4 {[%clk 0:02:29]} 13. Nxe4 {[%clk 0:01:18]}  Bxe4 {[%clk 0:02:29]} 14. a3 {[%clk 0:01:13]}  a5 {[%clk 0:02:27]} 15. Bg3 {[%clk 0:01:07]}  Bxg3 {[%clk 0:02:17]} 16. hxg3 {[%clk 0:01:08]}  Qd8 {[%clk 0:02:14]} 17. b4 {[%clk 0:01:07]}  axb4 {[%clk 0:01:57]} 18. axb4 {[%clk 0:01:08]}  Qf6 {[%clk 0:01:57]} 19. Rxa8 {[%clk 0:01:05]}  Rxa8 {[%clk 0:01:57]} 20. b5 {[%clk 0:01:06]}  Qh6 {[%clk 0:01:42]} 21. bxc6 {[%clk 0:01:04]}  bxc6 {[%clk 0:01:41]} 22. Qb4 {[%clk 0:00:58]}  Ra2 {[%clk 0:01:19]} 23. Qb7 {[%clk 0:00:49]}  Nf8 {[%clk 0:01:07]} 24. Rxc6 {[%clk 0:00:47]}  Ra1+ {[%clk 0:01:03]} 25. Bf1 {[%clk 0:00:46]}  g6 {[%clk 0:00:58]} 26. Ne5 {[%clk 0:00:31]}  Qg7 {[%clk 0:00:11]} 27. Rc7 {[%clk 0:00:31]}  Qf6 {[%clk 0:00:03]} 28. Rxf7 {[%clk 0:00:27]}  Qe6 {[%clk 0:00:02]} 29. Rg7+ {[%clk 0:00:21]}  Kh8 {[%clk 0:00:00]} 30. Re7 {[%clk 0:00:18]} 1-0


[Site "https://www.chess.com"]